[Event "Sunway Sitges Chess Festival"]
[Date "2024.12.21"]
[White "Atanasov, Anthony"]
[Black "Karimov, Alisher"]
[WhiteElo "2415"]
[BlackElo "2296"]
[Round "8.15"]
[Result "1-0"]
[TimeControl "40/5400+30:1800+30"]

1. d4 Nf6 2. Nf3 e6 3. Nbd2 {[%clk 1:29:58]} 3... c5 4. e3 Be7 5. Bd3 O-O 6. O-O
b6 {[%clk 1:24:20]} 7. Re1 d5 {[%clk 1:20:26]} 8. b3 {[%clk 1:18:43]} 8... Ba6
9. c4 Nc6 10. Bb2 {[%clk 1:10:39]} 10... Rc8 {[%clk 0:53:22]} 11. Rc1 {[%clk
1:08:22]} 11... dxc4 12. bxc4 Qd7 {[%clk 0:37:37]} 13. a3 Rfd8 14. Qc2 h6 15. d5
exd5 {[%clk 0:07:53]} 16. Bf5 Qc7 {[%clk 0:08:01]} 17. Bxc8 Qxc8 18. Bxf6 Bxf6
19. cxd5 {[%clk 0:36:56]} 19... Rxd5 20. Ne4 Be7 {[%clk 0:08:05]} 21. Red1 Rxd1+
{[%clk 0:05:52]} 22. Rxd1 {[%clk 0:31:49]} 22... Qe6 23. Nc3 Bc4 24. Nd2 Bf6 25.
Nxc4 {[%clk 0:21:01]} 25... Qxc4 26. Qe4 Qxc3 27. Qxc6 Qb3 28. Qa8+ Kh7 29. Qe4+
Kg8 30. Rd7 Qxa3 {[%clk 0:01:12]} 31. g3 {[%clk 0:20:14]} 31... Qa2 32. Qe8+ Kh7
33. Rxf7 Qb1+ {[%clk 0:00:38]} 34. Kg2 {[%clk 0:18:23]} 34... Qg6 {[%clk
0:00:07]} 35. Qe6 Bb2 {[%clk 0:00:-52]} 36. Qd5 Qg5 {[%clk 0:-5:-22]} 37. Qa8
Bf6 {[%clk 0:-5:-53]} 38. Rf8 Qe5 {[%clk 0:-6:-29]} 39. Re8 {[%clk 0:13:46]}
39... Qd6 {[%clk 0:-6:-37]} 1-0

[Variant "Standard"]
[Site "Europe Echecs"]

[Event "Sunway Sitges Chess Festival"]
[Date "2024.12.21"]
[White "Dudognon, Thibault"]
[Black "Brzezina, Piotr"]
[WhiteElo "2411"]
[BlackElo "2274"]
[Round "8.16"]
[Result "1-0"]
[TimeControl "40/5400+30:1800+30"]

1. e4 {[%clk 1:28:14]} 1... e5 {[%clk 1:29:23]} 2. Nf3 {[%clk 1:28:15]} 2... Nc6
{[%clk 1:29:44]} 3. d4 {[%clk 1:28:36]} 3... exd4 {[%clk 1:30:09]} 4. Nxd4
{[%clk 1:29:00]} 4... Nf6 {[%clk 1:30:31]} 5. Nc3 {[%clk 1:29:24]} 5... Bb4
{[%clk 1:30:46]} 6. Nxc6 {[%clk 1:29:16]} 6... bxc6 {[%clk 1:31:13]} 7. Bd3
{[%clk 1:30:09]} 7... d5 {[%clk 1:31:28]} 8. exd5 {[%clk 1:30:33]} 8... cxd5
{[%clk 1:31:42]} 9. O-O {[%clk 1:30:55]} 9... O-O {[%clk 1:31:42]} 10. h3 {[%clk
1:31:21]} 10... c6 {[%clk 1:13:26]} 11. Qf3 {[%clk 1:26:13]} 11... Re8 {[%clk
1:05:48]} 12. Bf4 {[%clk 1:28:45]} 12... Bd6 {[%clk 0:56:51]} 13. Rfe1 {[%clk
1:25:14]} 13... Bxf4 {[%clk 0:52:51]} 14. Qxf4 {[%clk 1:24:22]} 14... Be6 {[%clk
0:52:26]} 15. Ne2 {[%clk 1:13:57]} 15... c5 {[%clk 0:44:45]} 16. c3 {[%clk
1:13:51]} 16... Qb6 {[%clk 0:37:26]} 17. b4 {[%clk 1:09:14]} 17... Ne4 {[%clk
0:31:28]} 18. a3 {[%clk 1:03:58]} 18... a5 {[%clk 0:29:20]} 19. b5 {[%clk
0:59:38]} 19... Nf6 {[%clk 0:22:50]} 20. a4 {[%clk 0:53:29]} 20... Nd7 {[%clk
0:18:44]} 21. Rad1 {[%clk 0:48:47]} 21... Qb8 {[%clk 0:16:12]} 22. Qh4 {[%clk
0:41:32]} 22... g6 {[%clk 0:12:33]} 23. Nf4 {[%clk 0:49:54]} 23... Qd8 {[%clk
0:09:33]} 24. Qxd8 {[%clk 0:45:32]} 24... Raxd8 {[%clk 0:09:56]} 25. g4 {[%clk
0:41:25]} 25... Nb6 {[%clk 0:09:41]} 26. Bc2 {[%clk 0:41:26]} 26... Kg7 {[%clk
0:05:34]} 27. Nd3 {[%clk 0:41:06]} 27... c4 {[%clk 0:02:43]} 28. Nf4 {[%clk
0:40:14]} 28... Kf6 {[%clk 0:02:32]} 29. Rd4 {[%clk 0:39:00]} 29... h6 {[%clk
0:02:11]} 30. f3 {[%clk 0:38:32]} 30... Rd6 {[%clk 0:02:10]} 31. Kf2 {[%clk
0:38:22]} 31... Re7 {[%clk 0:02:05]} 32. Ng2 {[%clk 0:36:19]} 32... Rd8 {[%clk
0:01:04]} 33. f4 {[%clk 0:34:55]} 33... Rde8 {[%clk 0:00:32]} 34. Ne3 {[%clk
0:35:06]} 34... Bc8 {[%clk 0:00:32]} 35. Rd2 {[%clk 0:30:18]} 35... Bb7 {[%clk
0:00:32]} 36. Rde2 {[%clk 0:30:29]} 36... Re6 {[%clk 0:00:-59]} 37. f5 {[%clk
0:28:32]} 37... Re5 {[%clk 0:-4:-34]} 38. g5+ {[%clk 0:23:42]} 38... Kg7 {[%clk
0:00:33]} 39. fxg6 {[%clk 0:22:40]} 39... Kg8 {[%clk 0:-1:-3]} 40. gxf7+ {[%clk
0:48:11]} 40... Kxf7 {[%clk 0:30:59]} 41. g6+ {[%clk 0:48:11]} 41... Kf8 {[%clk
0:29:58]} 42. Nf5 {[%clk 0:42:36]} 42... Rxe2+ {[%clk 0:29:43]} 43. Rxe2 {[%clk
0:43:02]} 43... Rxe2+ {[%clk 0:30:07]} 44. Kxe2 {[%clk 0:43:29]} 44... Bc8
{[%clk 0:30:28]} 45. g7+ {[%clk 0:41:02]} 45... Kf7 {[%clk 0:29:32]} 46. Nd6+
{[%clk 0:40:28]} 46... Kxg7 {[%clk 0:30:01]} 47. Nxc8 {[%clk 0:40:52]} 47...
Nxc8 {[%clk 0:30:25]} 48. Ke3 {[%clk 0:41:19]} 48... Kf6 {[%clk 0:29:50]} 49.
Kd4 {[%clk 0:41:36]} 49... Ne7 {[%clk 0:25:03]} 50. Kc5 {[%clk 0:38:13]} 50...
Ke6 {[%clk 0:24:51]} 51. b6 {[%clk 0:37:30]} 51... Kd7 {[%clk 0:25:10]} 52. h4
{[%clk 0:35:55]} 52... Kc8 {[%clk 0:21:04]} 53. Kd6 {[%clk 0:35:16]} 53... Ng8
{[%clk 0:21:33]} 54. Kxd5 {[%clk 0:32:44]} 54... Kb7 {[%clk 0:21:56]} 55. Kc5
{[%clk 0:32:23]} 55... Nf6 {[%clk 0:21:35]} 56. Kb5 {[%clk 0:32:26]} 56... Kb8
{[%clk 0:21:14]} 57. Kxa5 {[%clk 0:31:20]} 57... Nd5 {[%clk 0:21:28]} 58. Kb5
{[%clk 0:31:25]} 58... Nxc3+ {[%clk 0:21:52]} 59. Kxc4 {[%clk 0:31:44]} 59...
Ne2 {[%clk 0:22:17]} 60. Be4 {[%clk 0:30:44]} 60... Ng3 {[%clk 0:22:34]} 61. Bd3
{[%clk 0:30:45]} 61... Nh5 {[%clk 0:22:48]} 62. a5 {[%clk 0:30:37]} 62... Nf6
{[%clk 0:23:09]} 63. a6 {[%clk 0:30:36]} 1-0

[Variant "Standard"]
[Site "Europe Echecs"]

[Event "Sunway Sitges Chess Festival"]
[Date "2024.12.21"]
[White "Coles, Robin"]
[Black "Isanzhulov, Arystan"]
[WhiteElo "2291"]
[BlackElo "2395"]
[Round "8.17"]
[Result "0-1"]
[TimeControl "40/5400+30:1800+30"]

1. e4 {[%clk 1:30:57]} 1... c5 {[%clk 1:30:51]} 2. Nf3 {[%clk 1:31:20]} 2... Nc6
{[%clk 1:31:17]} 3. Bb5 {[%clk 1:31:44]} 3... e6 {[%clk 1:31:27]} 4. O-O {[%clk
1:29:52]} 4... Nge7 {[%clk 1:31:32]} 5. d4 {[%clk 1:30:01]} 5... cxd4 {[%clk
1:32:00]} 6. Nxd4 {[%clk 1:30:24]} 6... Qb6 {[%clk 1:32:26]} 7. Nxc6 {[%clk
1:30:15]} 7... bxc6 {[%clk 1:31:45]} 8. Bd3 {[%clk 1:30:39]} 8... Ng6 {[%clk
1:32:09]} 9. c4 {[%clk 1:25:40]} 9... Bd6 {[%clk 1:28:40]} 10. Nc3 {[%clk
1:25:36]} 10... O-O {[%clk 1:28:22]} 11. Rb1 {[%clk 1:22:51]} 11... Rb8 {[%clk
1:20:01]} 12. Be3 {[%clk 1:17:38]} 12... Qc7 {[%clk 1:19:32]} 13. g3 {[%clk
1:15:04]} 13... Bb4 {[%clk 1:11:23]} 14. Qc2 {[%clk 1:11:21]} 14... Ba6 {[%clk
1:00:48]} 15. a3 {[%clk 1:04:43]} 15... Be7 {[%clk 0:59:14]} 16. f4 {[%clk
0:59:57]} 16... d6 {[%clk 0:59:10]} 17. b4 {[%clk 0:56:39]} 17... Rfc8 {[%clk
0:54:40]} 18. Rbc1 {[%clk 0:43:39]} 18... c5 {[%clk 0:52:53]} 19. b5 {[%clk
0:43:28]} 19... Bb7 {[%clk 0:53:21]} 20. Rfd1 {[%clk 0:43:04]} 20... Nf8 {[%clk
0:51:32]} 21. Bf1 {[%clk 0:41:24]} 21... Nd7 {[%clk 0:50:21]} 22. a4 {[%clk
0:37:59]} 22... Rd8 {[%clk 0:48:28]} 23. Bg2 {[%clk 0:33:13]} 23... Rbc8 {[%clk
0:43:36]} 24. Qe2 {[%clk 0:29:32]} 24... Bf6 {[%clk 0:41:16]} 25. Bf2 {[%clk
0:25:07]} 25... Qb6 {[%clk 0:35:25]} 26. Qa2 {[%clk 0:11:27]} 26... a5 {[%clk
0:28:52]} 27. bxa6 {[%clk 0:13:48]} 27... Qxa6 {[%clk 0:29:17]} 28. Nb5 {[%clk
0:13:47]} 28... Be7 {[%clk 0:28:21]} 29. Rb1 {[%clk 0:12:26]} 29... Nb8 {[%clk
0:23:18]} 30. Be1 {[%clk 0:07:40]} 30... Qa8 {[%clk 0:20:34]} 31. Qc2 {[%clk
0:06:37]} 31... Nc6 {[%clk 0:20:49]} 32. Bc3 {[%clk 0:06:36]} 32... Bf8 {[%clk
0:17:31]} 33. Rd2 {[%clk 0:05:12]} 33... Nb4 {[%clk 0:16:57]} 34. Bxb4 {[%clk
0:03:57]} 34... cxb4 {[%clk 0:17:26]} 35. Qd1 {[%clk 0:03:44]} 35... Bxe4 {[%clk
0:16:33]} 36. Bxe4 {[%clk 0:04:10]} 36... Qxe4 {[%clk 0:17:02]} 37. Rd4 {[%clk
0:04:04]} 37... Qa8 {[%clk 0:15:55]} 38. f5 {[%clk 0:02:38]} 38... d5 {[%clk
0:14:46]} 39. fxe6 {[%clk 0:03:02]} 39... fxe6 {[%clk 0:13:38]} 40. Qg4 {[%clk
0:31:21]} 40... Bc5 {[%clk 0:07:49]} 41. Qxe6+ {[%clk 0:29:13]} 41... Kh8 {[%clk
0:41:01]} 42. Qe3 {[%clk 0:28:25]} 0-1

[Variant "Standard"]
[Site "Europe Echecs"]

[Event "Sunway Sitges Chess Festival"]
[Date "2024.12.21"]
[White "Hess, Max"]
[Black "Wang, Lachlan"]
[WhiteElo "2385"]
[BlackElo "1848"]
[Round "8.18"]
[Result "1-0"]
[TimeControl "40/5400+30:1800+30"]

1. d4 {[%clk 1:30:54]} 1... Nf6 {[%clk 1:30:54]} 2. c4 {[%clk 1:31:16]} 2... g6
{[%clk 1:31:17]} 3. Nc3 {[%clk 1:31:42]} 3... Bg7 {[%clk 1:31:41]} 4. e4 {[%clk
1:32:03]} 4... d6 {[%clk 1:32:06]} 5. Be2 {[%clk 1:32:21]} 5... O-O {[%clk
1:32:27]} 6. Nf3 {[%clk 1:32:48]} 6... e5 {[%clk 1:32:50]} 7. Be3 {[%clk
1:32:35]} 7... Nc6 {[%clk 1:17:56]} 8. d5 {[%clk 1:32:53]} 8... Ne7 {[%clk
1:18:11]} 9. Nd2 {[%clk 1:33:15]} 9... Ne8 {[%clk 1:08:19]} 10. Qc2 {[%clk
1:33:00]} 10... f5 {[%clk 1:05:56]} 11. f3 {[%clk 1:32:59]} 11... f4 {[%clk
1:05:58]} 12. Bf2 {[%clk 1:33:21]} 12... c6 {[%clk 1:05:51]} 13. g4 {[%clk
1:29:35]} 13... h6 {[%clk 0:48:45]} 14. h4 {[%clk 1:29:26]} 14... c5 {[%clk
0:44:11]} 15. a3 {[%clk 1:29:30]} 15... Bd7 {[%clk 0:42:47]} 16. b4 {[%clk
1:29:35]} 16... b6 {[%clk 0:41:43]} 17. Rb1 {[%clk 1:28:37]} 17... Qc7 {[%clk
0:39:12]} 18. g5 {[%clk 1:26:49]} 18... h5 {[%clk 0:37:38]} 19. O-O {[%clk
1:25:59]} 19... Bh8 {[%clk 0:29:19]} 20. Rb3 {[%clk 1:25:16]} 20... Ng7 {[%clk
0:29:16]} 21. bxc5 {[%clk 1:25:36]} 21... bxc5 {[%clk 0:29:41]} 22. Rfb1 {[%clk
1:25:51]} 22... Rab8 {[%clk 0:28:58]} 23. Qb2 {[%clk 1:25:39]} 23... Rxb3 {[%clk
0:29:14]} 24. Qxb3 {[%clk 1:26:02]} 24... Rc8 {[%clk 0:21:14]} 25. Qb7 {[%clk
1:25:39]} 25... Ne8 {[%clk 0:16:48]} 26. Qxc7 {[%clk 1:26:03]} 26... Rxc7 {[%clk
0:17:16]} 27. Bd1 {[%clk 1:20:05]} 27... Nc8 {[%clk 0:16:30]} 28. Rb8 {[%clk
1:16:30]} 28... Nb6 {[%clk 0:13:17]} 29. Nb5 {[%clk 1:16:33]} 29... Bxb5 {[%clk
0:13:35]} 30. cxb5 {[%clk 1:17:00]} 30... Kf7 {[%clk 0:13:28]} 31. a4 {[%clk
1:07:25]} 31... Nd7 {[%clk 0:13:38]} 32. Ra8 {[%clk 1:03:53]} 32... Nb6 {[%clk
0:14:00]} 33. Rxe8 {[%clk 1:03:21]} 33... Kxe8 {[%clk 0:14:27]} 34. a5 {[%clk
1:03:45]} 34... Nd7 {[%clk 0:11:40]} 35. Nc4 {[%clk 1:04:08]} 35... Ke7 {[%clk
0:12:09]} 36. Ba4 {[%clk 1:03:02]} 36... Bg7 {[%clk 0:08:57]} 37. Be1 {[%clk
1:03:08]} 37... Rc8 {[%clk 0:08:06]} 38. b6 {[%clk 0:57:39]} 38... axb6 {[%clk
0:07:42]} 39. axb6 {[%clk 0:55:24]} 39... Rb8 {[%clk 0:00:47]} 40. Ba5 {[%clk
1:25:19]} 40... Nxb6 {[%clk 0:30:34]} 41. Nxb6 {[%clk 1:22:16]} 41... Bf8 {[%clk
0:29:15]} 42. Kf2 {[%clk 1:15:56]} 42... Kf7 {[%clk 0:29:39]} 43. Nc4 {[%clk
1:14:05]} 43... Rb1 {[%clk 0:28:44]} 44. Bc2 {[%clk 1:12:09]} 44... Rh1 {[%clk
0:25:15]} 45. Kg2 {[%clk 1:10:57]} 45... Ra1 {[%clk 0:25:36]} 46. Bd3 {[%clk
1:10:28]} 46... Ra2+ {[%clk 0:26:02]} 47. Kg1 {[%clk 1:07:36]} 47... Ke7 {[%clk
0:25:45]} 48. Bf1 {[%clk 1:07:13]} 48... Ra1 {[%clk 0:23:50]} 49. Kf2 {[%clk
1:05:59]} 49... Ra2+ {[%clk 0:24:00]} 50. Be2 {[%clk 0:56:38]} 50... Ra1 {[%clk
0:21:00]} 51. Bc3 {[%clk 0:55:56]} 51... Ra2 {[%clk 0:19:24]} 52. Bb2 {[%clk
0:54:26]} 52... Ra4 {[%clk 0:19:07]} 53. Ke1 {[%clk 0:54:27]} 53... Rb4 {[%clk
0:13:27]} 54. Kd2 {[%clk 0:54:37]} 54... Kd7 {[%clk 0:13:36]} 55. Kc2 {[%clk
0:54:06]} 55... Be7 {[%clk 0:13:13]} 56. Bc3 {[%clk 0:54:23]} 56... Rb8 {[%clk
0:13:20]} 57. Bf1 {[%clk 0:54:00]} 57... Bd8 {[%clk 0:12:06]} 58. Bh3+ {[%clk
0:53:54]} 58... Ke7 {[%clk 0:12:11]} 59. Nxe5 {[%clk 0:51:27]} 59... dxe5 {[%clk
0:12:32]} 60. Bxe5 {[%clk 0:51:53]} 60... Ra8 {[%clk 0:12:31]} 61. Bf6+ {[%clk
0:50:13]} 61... Kd6 {[%clk 0:07:14]} 62. Bb2 {[%clk 0:45:27]} 62... Ba5 {[%clk
0:06:18]} 63. Be6 {[%clk 0:43:30]} 63... Be1 {[%clk 0:06:14]} 64. Bf6 {[%clk
0:43:31]} 64... Bxh4 {[%clk 0:04:13]} 65. e5+ {[%clk 0:43:56]} 65... Kc7 {[%clk
0:04:41]} 66. d6+ {[%clk 0:43:27]} 66... Kc6 {[%clk 0:05:03]} 67. d7 {[%clk
0:43:21]} 67... Kc7 {[%clk 0:05:30]} 68. Bh3 {[%clk 0:43:20]} 68... Rf8 {[%clk
0:03:50]} 69. e6 {[%clk 0:43:26]} 69... Kd6 {[%clk 0:03:20]} 1-0

[Variant "Standard"]
[Site "Europe Echecs"]

[Event "Sunway Sitges Chess Festival"]
[Date "2024.12.21"]
[White "Koh, Ming Yao Gavin"]
[Black "Tan, Jun Ying"]
[WhiteElo "1995"]
[BlackElo "2357"]
[Round "8.19"]
[Result "1/2-1/2"]
[TimeControl "40/5400+30:1800+30"]

1. d4 {[%clk 1:30:56]} 1... g6 {[%clk 1:30:50]} 2. c4 {[%clk 1:31:19]} 2... Bg7
{[%clk 1:31:08]} 3. e4 {[%clk 1:31:41]} 3... d6 {[%clk 1:31:30]} 4. Nc3 {[%clk
1:31:57]} 4... e5 {[%clk 1:31:31]} 5. d5 {[%clk 1:32:05]} 5... a5 {[%clk
1:31:31]} 6. h4 {[%clk 1:20:11]} 6... h5 {[%clk 1:14:45]} 7. Be2 {[%clk
1:19:23]} 7... Bh6 {[%clk 1:09:16]} 8. Nf3 {[%clk 1:14:13]} 8... Bxc1 {[%clk
1:07:57]} 9. Qxc1 {[%clk 1:14:28]} 9... Na6 {[%clk 0:58:41]} 10. Qd2 {[%clk
1:02:24]} 10... Bd7 {[%clk 0:58:26]} 11. Ng5 {[%clk 0:55:17]} 11... Qe7 {[%clk
0:51:05]} 12. O-O-O {[%clk 0:52:31]} 12... O-O-O {[%clk 0:43:26]} 13. Kb1 {[%clk
0:51:52]} 13... Nc5 {[%clk 0:41:05]} 14. Rde1 {[%clk 0:40:54]} 14... f6 {[%clk
0:38:52]} 15. Nh3 {[%clk 0:39:38]} 15... b6 {[%clk 0:38:20]} 16. Bd1 {[%clk
0:39:40]} 16... Kb7 {[%clk 0:37:17]} 17. f3 {[%clk 0:37:24]} 17... Nh6 {[%clk
0:37:13]} 18. Nf2 {[%clk 0:37:13]} 18... Nf7 {[%clk 0:37:12]} 19. a3 {[%clk
0:25:03]} 19... Ra8 {[%clk 0:36:25]} 20. Bc2 {[%clk 0:24:06]} 20... Qe8 {[%clk
0:29:21]} 21. Ka2 {[%clk 0:17:37]} 21... Qc8 {[%clk 0:26:54]} 22. Rc1 {[%clk
0:16:08]} 22... f5 {[%clk 0:26:24]} 23. Rh2 {[%clk 0:14:59]} 23... f4 {[%clk
0:25:15]} 24. Rg1 {[%clk 0:14:13]} 24... Qd8 {[%clk 0:20:29]} 25. g3 {[%clk
0:11:48]} 25... fxg3 {[%clk 0:17:34]} 26. Rxg3 {[%clk 0:12:16]} 26... Qf6 {[%clk
0:17:50]} 27. Ne2 {[%clk 0:09:00]} 27... Rag8 {[%clk 0:15:56]} 28. f4 {[%clk
0:06:29]} 28... exf4 {[%clk 0:15:57]} 29. Qxf4 {[%clk 0:06:35]} 29... Qe7 {[%clk
0:15:36]} 30. Nd3 {[%clk 0:03:23]} 30... Nxd3 {[%clk 0:15:57]} 31. Bxd3 {[%clk
0:03:46]} 31... Ne5 {[%clk 0:16:04]} 32. Nc3 {[%clk 0:02:20]} 32... Rf8 {[%clk
0:15:15]} 33. Qc1 {[%clk 0:02:42]} 33... Ng4 {[%clk 0:08:37]} 34. Rh1 {[%clk
0:02:43]} 34... Qe5 {[%clk 0:08:46]} 35. Rhg1 {[%clk 0:02:48]} 35... Qf6 {[%clk
0:07:52]} 36. Rh1 {[%clk 0:02:29]} 36... Qf2 {[%clk 0:05:10]} 37. Qg1 {[%clk
0:01:40]} 37... Qf4 {[%clk 0:03:42]} 38. Be2 {[%clk 0:01:41]} 38... Ne5 {[%clk
0:02:22]} 39. Rg5 {[%clk 0:01:27]} 39... Bg4 {[%clk 0:02:22]} 40. Qh2 {[%clk
0:31:16]} 40... Qe3 {[%clk 0:30:40]} 41. Bxg4 {[%clk 0:24:35]} 41... hxg4 {[%clk
0:24:59]} 42. Qe2 {[%clk 0:21:43]} 42... Qg3 {[%clk 0:13:43]} 43. c5 {[%clk
0:19:46]} 43... dxc5 {[%clk 0:12:43]} 44. Qb5 {[%clk 0:17:59]} 44... Ka7 {[%clk
0:07:43]} 45. Na4 {[%clk 0:15:32]} 45... c4 {[%clk 0:07:40]} 46. Rc1 {[%clk
0:13:33]} 46... Rxh4 {[%clk 0:03:19]} 47. Rc3 {[%clk 0:06:40]} 47... Rf3 {[%clk
0:03:30]} 48. Rxf3 {[%clk 0:05:59]} 48... Nxf3 {[%clk 0:03:58]} 49. Rxg6 {[%clk
0:06:10]} 49... Nd2 {[%clk 0:01:27]} 50. Nc5 {[%clk 0:05:26]} 50... Qb3+ {[%clk
0:01:48]} 51. Nxb3 {[%clk 0:05:47]} 51... cxb3+ {[%clk 0:02:15]} 52. Qxb3 {[%clk
0:06:04]} 52... Nxb3 {[%clk 0:02:11]} 53. Kxb3 {[%clk 0:06:21]} 53... g3 {[%clk
0:02:47]} 54. e5 {[%clk 0:05:43]} 1/2-1/2

[Variant "Standard"]
[Site "Europe Echecs"]

[Event "Sunway Sitges Chess Festival"]
[Date "2024.12.21"]
[White "Travadon, Loic"]
[Black "Chan, Kim Yew"]
[WhiteElo "2428"]
[BlackElo "2274"]
[Round "8.20"]
[Result "1-0"]
[TimeControl "40/5400+30:1800+30"]

1. e4 {[%clk 1:30:57]} 1... c6 {[%clk 1:30:13]} 2. d4 {[%clk 1:31:19]} 2... d5
{[%clk 1:30:39]} 3. e5 {[%clk 1:31:43]} 3... Bf5 {[%clk 1:31:05]} 4. c4 {[%clk
1:32:07]} 4... e6 {[%clk 1:29:17]} 5. Nc3 {[%clk 1:32:29]} 5... dxc4 {[%clk
1:23:53]} 6. Bxc4 {[%clk 1:32:50]} 6... Nd7 {[%clk 1:24:20]} 7. Nge2 {[%clk
1:32:44]} 7... Ne7 {[%clk 1:20:50]} 8. O-O {[%clk 1:32:11]} 8... Nb6 {[%clk
1:15:02]} 9. Bb3 {[%clk 1:31:58]} 9... Ned5 {[%clk 1:15:12]} 10. Ng3 {[%clk
1:32:17]} 10... Bg6 {[%clk 1:11:29]} 11. Nce4 {[%clk 1:32:39]} 11... Be7 {[%clk
1:05:45]} 12. h4 {[%clk 1:32:59]} 12... h6 {[%clk 1:02:51]} 13. h5 {[%clk
1:33:21]} 13... Bh7 {[%clk 1:03:04]} 14. Qg4 {[%clk 1:33:44]} 14... Rg8 {[%clk
0:59:02]} 15. Bc2 {[%clk 1:03:56]} 15... Bxe4 {[%clk 0:49:21]} 16. Bxe4 {[%clk
1:05:48]} 16... Qd7 {[%clk 0:28:15]} 17. Bxh6 {[%clk 0:55:04]} 17... O-O-O
{[%clk 0:35:14]} 18. Bxg7 {[%clk 0:46:32]} 18... Bf8 {[%clk 0:25:06]} 19. h6
{[%clk 0:44:34]} 19... Bxg7 {[%clk 0:25:32]} 20. h7 {[%clk 0:43:44]} 20... Rh8
{[%clk 0:25:54]} 21. Qxg7 {[%clk 0:44:08]} 21... Nf4 {[%clk 0:26:13]} 22. Qh6
{[%clk 0:28:40]} 22... Nbd5 {[%clk 0:23:47]} 23. Rfe1 {[%clk 0:25:23]} 23...
Rdf8 {[%clk 0:21:16]} 24. Bxd5 {[%clk 0:24:12]} 24... Nxd5 {[%clk 0:21:44]} 25.
Ne4 {[%clk 0:24:15]} 25... f6 {[%clk 0:19:04]} 26. exf6 {[%clk 0:17:02]} 26...
Rf7 {[%clk 0:19:13]} 27. Ng5 {[%clk 0:17:29]} 27... Rxf6 {[%clk 0:19:39]} 28.
Qh4 {[%clk 0:16:15]} 28... Rf5 {[%clk 0:14:10]} 29. Re5 {[%clk 0:16:04]} 29...
Nf6 {[%clk 0:14:04]} 30. Rae1 {[%clk 0:05:32]} 30... Qg7 {[%clk 0:03:17]} 31.
Nxe6 {[%clk 0:12:29]} 31... Rxe5 {[%clk 0:03:46]} 32. dxe5 {[%clk 0:12:11]} 1-0

[Variant "Standard"]
[Site "Europe Echecs"]

[Event "Sunway Sitges Chess Festival"]
[Date "2024.12.21"]
[White "Liu, Yi"]
[Black "Gormally, Daniel W"]
[WhiteElo "2261"]
[BlackElo "2424"]
[Round "8.21"]
[Result "0-1"]
[TimeControl "40/5400+30:1800+30"]

1. d4 {[%clk 1:28:22]} 1... Nf6 {[%clk 1:30:52]} 2. Nc3 {[%clk 1:26:56]} 2... d6
{[%clk 1:29:37]} 3. e4 {[%clk 1:29:11]} 3... g6 {[%clk 1:26:36]} 4. f3 {[%clk
1:27:11]} 4... Bg7 {[%clk 1:22:56]} 5. Be3 {[%clk 1:29:13]} 5... a6 {[%clk
1:22:41]} 6. Qd2 {[%clk 1:29:05]} 6... Nc6 {[%clk 1:22:47]} 7. h4 {[%clk
1:19:11]} 7... b5 {[%clk 1:17:26]} 8. a4 {[%clk 1:16:01]} 8... bxa4 {[%clk
1:11:02]} 9. Rxa4 {[%clk 1:17:35]} 9... h5 {[%clk 1:09:36]} 10. Nh3 {[%clk
1:09:27]} 10... Nd7 {[%clk 0:56:15]} 11. Ng5 {[%clk 1:04:16]} 11... Nb6 {[%clk
0:54:20]} 12. Ra3 {[%clk 0:56:01]} 12... e6 {[%clk 0:50:17]} 13. Na4 {[%clk
0:52:55]} 13... d5 {[%clk 0:35:34]} 14. e5 {[%clk 0:50:35]} 14... Bf8 {[%clk
0:29:30]} 15. Nc5 {[%clk 0:43:30]} 15... Be7 {[%clk 0:44:45]} 16. b3 {[%clk
0:40:57]} 16... Kf8 {[%clk 0:43:28]} 17. f4 {[%clk 0:38:36]} 17... Kg7 {[%clk
0:44:11]} 18. Be2 {[%clk 0:29:30]} 18... Bxc5 {[%clk 0:39:06]} 19. dxc5 {[%clk
0:35:13]} 19... d4 {[%clk 0:27:25]} 20. Bf3 {[%clk 0:29:27]} 20... Qe7 {[%clk
0:25:17]} 21. Bxd4 {[%clk 0:26:14]} 21... Nxd4 {[%clk 0:31:03]} 22. Qxd4 {[%clk
0:21:28]} 22... Rd8 {[%clk 0:31:04]} 23. Qf2 {[%clk 0:20:32]} 23... Nd5 {[%clk
0:30:05]} 24. O-O {[%clk 0:19:52]} 24... Rb8 {[%clk 0:29:59]} 25. g3 {[%clk
0:17:04]} 25... Nb4 {[%clk 0:26:37]} 26. Raa1 {[%clk 0:13:08]} 26... Rb5 {[%clk
0:28:21]} 27. Ne4 {[%clk 0:12:47]} 27... Bb7 {[%clk 0:14:35]} 28. Nd6 {[%clk
0:08:39]} 28... cxd6 {[%clk 0:23:11]} 29. cxd6 {[%clk 0:01:16]} 29... Qd7 {[%clk
0:22:09]} 30. c4 {[%clk 0:00:57]} 30... Bxf3 {[%clk 0:21:58]} 31. cxb5 {[%clk
0:-2:-46]} 31... Ba8 {[%clk 0:18:42]} 32. Qb6 {[%clk 0:00:56]} 32... Nd5 {[%clk
0:16:31]} 33. Qxa6 {[%clk 0:01:20]} 33... Bb7 {[%clk 0:16:09]} 34. Qa5 {[%clk
0:00:-57]} 34... Ra8 {[%clk 0:14:08]} 35. Qd2 {[%clk 0:-1:-29]} 35... Qxb5
{[%clk 0:13:57]} 36. Rxa8 {[%clk 0:01:33]} 36... Bxa8 {[%clk 0:12:55]} 37. Qf2
{[%clk 0:00:-45]} 37... Qc6 {[%clk 0:10:46]} 38. Qf3 {[%clk 0:01:03]} 38... Qc2
{[%clk 0:08:10]} 39. Rf2 {[%clk 0:01:03]} 39... Qc5 {[%clk 0:06:32]} 40. Qe4
{[%clk 0:00:36]} 40... Bc6 {[%clk 0:-16:-7]} 41. Qc4 {[%clk 0:00:-35]} 41... Qb6
{[%clk 0:-16:-23]} 42. b4 {[%clk 0:-10:-38]} 42... Nxb4 {[%clk 0:23:40]} 43. f5
{[%clk 0:11:57]} 43... gxf5 {[%clk 0:22:21]} 44. Qf4 {[%clk 0:07:51]} 44... Nd5
{[%clk 0:22:45]} 45. Qg5+ {[%clk 0:08:15]} 45... Kf8 {[%clk 0:23:10]} 46. Qxh5
{[%clk 0:08:10]} 46... Ke8 {[%clk 0:23:24]} 47. Qg5 {[%clk 0:05:26]} 47... Kd7
{[%clk 0:23:28]} 48. Qh5 {[%clk 0:00:-12]} 48... Qe3 {[%clk 0:21:03]} 49. Qxf7+
{[%clk 0:01:32]} 49... Kc8 {[%clk 0:16:35]} 50. Qxe6+ {[%clk 0:02:00]} 50... Kb7
{[%clk 0:16:55]} 51. Qf7+ {[%clk 0:01:05]} 51... Kb6 {[%clk 0:17:10]} 52. Qg7
{[%clk 0:01:18]} 52... Nc3 {[%clk 0:13:25]} 53. d7 {[%clk 0:-5:-6]} 53... Qe1+
{[%clk 0:07:15]} 54. Rf1 {[%clk 0:02:07]} 54... Qd2 {[%clk 0:06:37]} 55. Rf2
{[%clk 0:01:48]} 55... Qd1+ {[%clk 0:06:31]} 56. Rf1 {[%clk 0:02:13]} 56... Qd4+
{[%clk 0:06:47]} 57. Rf2 {[%clk 0:02:28]} 57... Ne2+ {[%clk 0:07:11]} 58. Kf1
{[%clk 0:02:52]} 58... Qd1# {[%clk 0:07:07]} 0-1

[Variant "Standard"]
[Site "Europe Echecs"]